fUST/lending_fUST_20251226
["ID","MTS","AMOUNT","RATE_DAILY","PERIOD"]
[399788835,1766678431996,200.0,0.00028352,120]
[399788836,1766678491210,200.0,0.00030692,120]
[399788837,1766678498363,5000.0,6e-05,10]
[399788838,1766678522571,5000.0,6e-05,10]
[399788840,1766678671263,200.0,0.00024738,120]
[399788841,1766678720446,217.786446,0.00030137,120]
[399788842,1766678729849,5000.0,6e-05,10]
[399788843,1766678754066,5000.0,6e-05,10]
[399788844,1766678775531,1051.36,0.00032877,120]
[399788846,1766678944315,150.0,0.00032876,120]
[399788886,1766679031591,-150.0,5.707e-05,2]
[399788888,1766679031603,-502.0,5.707e-05,2]
[399788890,1766679031613,-255.83201179,5.78e-05,2]
[399788892,1766679031623,-300.0,5.862e-05,2]
[399788894,1766679031634,-300.0,5.862e-05,2]
[399788896,1766679031644,-1200.0,5.862e-05,2]
[399788898,1766679031654,-500.0,5.863e-05,2]
[399788900,1766679031665,-500.0,5.863e-05,2]
[399788902,1766679031675,-500.0,5.863e-05,2]
[399788904,1766679031690,-500.0,5.863e-05,2]
[399788906,1766679031706,-500.0,5.863e-05,2]
[399788908,1766679031716,-500.0,5.863e-05,2]
[399788910,1766679031725,-500.0,5.863e-05,2]
[399788912,1766679031735,-264.80714765,5.863e-05,2]
[399788914,1766679031746,-500.0,5.863e-05,2]
[399788916,1766679031755,-500.0,5.863e-05,2]
[399788918,1766679031765,-500.0,5.863e-05,2]
[399788920,1766679031775,-500.0,5.863e-05,2]
[399788922,1766679031784,-500.0,5.863e-05,2]
[399788925,1766679031794,-269.73921002,5.863e-05,2]
[399788928,1766679031804,-500.0,5.863e-05,2]
[399788930,1766679031813,-500.0,5.863e-05,2]
[399788931,1766679031823,-500.0,5.863e-05,2]
[399788933,1766679031832,-500.0,5.863e-05,2]
[399788935,1766679031842,-500.0,5.863e-05,2]
[399788937,1766679031851,-500.0,5.863e-05,2]
[399788939,1766679031861,-579.86487063,5.863e-05,2]
[399788941,1766679031871,-500.0,5.863e-05,2]
[399788943,1766679031880,-500.0,5.863e-05,2]
[399788945,1766679031890,-500.0,5.863e-05,2]
[399788947,1766679031899,-500.0,5.863e-05,2]
[399788949,1766679031908,-500.0,5.863e-05,2]
[399788951,1766679031918,-500.0,5.863e-05,2]
[399788953,1766679031927,-500.0,5.863e-05,2]
[399788955,1766679031937,-500.0,5.863e-05,2]
[399788957,1766679031946,-500.0,5.863e-05,2]
[399788959,1766679031955,-500.0,5.863e-05,2]
[399788961,1766679031965,-500.0,5.863e-05,2]
[399788963,1766679031975,-500.0,5.863e-05,2]
[399788964,1766679031984,-500.0,5.863e-05,2]
[399788967,1766679031995,-280.21471729,5.863e-05,2]
[399788968,1766679032004,-500.0,5.863e-05,2]
[399788969,1766679032014,-500.0,5.863e-05,2]
[399788970,1766679032024,-500.0,5.863e-05,2]
[399788971,1766679032034,-500.0,5.863e-05,2]
[399788972,1766679032043,-500.0,5.863e-05,2]
[399788973,1766679032052,-500.0,5.863e-05,2]
[399788974,1766679032062,-500.0,5.863e-05,2]
[399788975,1766679032072,-500.0,5.863e-05,2]
[399788976,1766679032082,-156.66647451,5.863e-05,2]
[399788977,1766679032092,-500.0,5.863e-05,2]
[399788978,1766679032102,-500.0,5.863e-05,2]
[399788979,1766679032112,-50000.0,5.863e-05,2]
[399788980,1766679032122,-300.0,5.866e-05,2]
[399788981,1766679032132,-300.0,5.866e-05,2]
[399788982,1766679032142,-300.0,5.866e-05,2]
[399788983,1766679032151,-300.0,5.866e-05,2]
[399788984,1766679032161,-300.0,5.866e-05,2]
[399788985,1766679032171,-192.71437433,5.866e-05,2]
[399788986,1766679032184,-107.28562567,5.866e-05,2]
[399788987,1766679032194,-300.0,5.866e-05,2]
[399788988,1766679032204,-120.79138612,5.866e-05,2]
[399789096,1766679037661,-179.20861388,5.866e-05,2]
[399789098,1766679037672,-300.0,5.866e-05,2]
[399789100,1766679037682,-300.0,5.866e-05,2]
[399789102,1766679037691,-300.0,5.866e-05,2]
[399789104,1766679037702,-300.0,5.866e-05,2]
[399789106,1766679037712,-300.0,5.866e-05,2]
[399789108,1766679037722,-300.0,5.866e-05,2]
[399789110,1766679037731,-300.0,5.866e-05,2]
[399789112,1766679037742,-173.11,5.979e-05,2]
[399789114,1766679037752,-259.66,6.25e-05,2]
[399789116,1766679037762,-300.0,6.448e-05,2]
[399789118,1766679037772,-346.22,6.522e-05,2]
[399789120,1766679037782,-432.77,6.794e-05,2]
[399789123,1766679037792,-519.32,7.066e-05,2]
[399789125,1766679037802,-562.62351621,7.236e-05,2]
[399789127,1766679037812,-605.88,7.338e-05,2]
[399789129,1766679037822,-692.43,7.609e-05,2]
[399789131,1766679037831,-778.99,7.881e-05,2]
[399789133,1766679037841,-865.54,8.153e-05,2]
[399789135,1766679037851,-500.0,8.219e-05,2]
[399789137,1766679037860,-15813.6529726,0.00010507,2]
[399789139,1766679037869,-600.0,0.00010716,2]
[399789141,1766679037880,-720.0,0.00011788,2]
[399789143,1766679037889,-565.58974505,0.00012902,2]
[399789145,1766679037902,-1479.36327965,0.00012902,2]
[399789147,1766679037912,-864.0,0.00012966,2]
[399789149,1766679037921,-1041.66666667,0.00012985,2]
[399789151,1766679037931,-2719.59939694,0.00013271,2]
[399789355,1766679039984,-915.56306572,0.00013271,2]
[399789360,1766679040030,-4977.78891447,0.00013271,2]
[399789369,1766679040104,-1791.73695134,0.00013271,2]
[399789371,1766679040114,-500.0,0.00013273,2]
[399789373,1766679040124,-500.0,0.00013273,2]
[399789375,1766679040134,-500.0,0.00013273,2]
[399789377,1766679040143,-500.0,0.00013273,2]
[399789379,1766679040153,-500.0,0.00013273,2]
[399789381,1766679040163,-500.0,0.00013273,2]
[399789383,1766679040172,-500.0,0.00013273,2]
[399789384,1766679040182,-83.38593507,0.00013673,2]
[399789423,1766679040784,150.0,0.00032877,120]
[399789595,1766679042876,-216.61406493,0.00013673,2]
[399789596,1766679042887,-1500.0,0.00013699,2]
[399789598,1766679042898,-151.0,0.00013699,2]
[399789601,1766679042913,-151.0,0.00013699,2]
[399789603,1766679042923,-151.0,0.00013699,2]
[399789605,1766679042934,-154.102266,0.00013699,2]
[399789607,1766679042944,-151.0,0.00013699,2]
[399789609,1766679042955,-151.0,0.00013699,2]
[399789611,1766679042965,-151.0,0.00013699,2]
[399789613,1766679042975,-151.0,0.00013699,2]
[399789615,1766679042985,-151.0,0.00013699,2]
[399789617,1766679042995,-151.0,0.00013699,2]
[399789619,1766679043005,-151.0,0.00013699,2]
[399789621,1766679043015,-151.0,0.00013699,2]
[399789623,1766679043025,-151.0,0.00013699,2]
[399789626,1766679043036,-151.0,0.00013699,2]
[399789628,1766679043046,-151.0,0.00013699,2]
[399789630,1766679043059,-151.0,0.00013699,2]
[399789632,1766679043071,-151.0,0.00013699,2]
[399789634,1766679043082,-151.0,0.00013699,2]
[399789636,1766679043092,-151.0,0.00013699,2]
[399789638,1766679043103,-255.693456,0.00013699,2]
[399789640,1766679043113,-151.0,0.00013699,2]
[399789642,1766679043123,-151.0,0.00013699,2]
[399789644,1766679043135,-151.0,0.00013699,2]
[399789646,1766679043144,-151.0,0.00013699,2]
[399789648,1766679043154,-151.0,0.00013699,2]
[399789650,1766679043164,-151.0,0.00013699,2]
[399789652,1766679043173,-151.0,0.00013699,2]
[399789654,1766679043184,-151.0,0.00013699,2]
[399789656,1766679043197,-151.0,0.00013699,2]
[399789658,1766679043208,-151.0,0.00013699,2]
[399789660,1766679043218,-266.947701,0.00013699,2]
[399789662,1766679043229,-1000.0,0.00013699,2]
[399789665,1766679043239,-199.039474,0.00013699,2]
[399789667,1766679043256,-262.920145,0.00013699,2]
[399789669,1766679043267,-262.920145,0.00013699,2]
[399789671,1766679043277,-262.920145,0.00013699,2]
[399789673,1766679043288,-229.31914258,0.00013699,2]
[399789675,1766679043299,-500.0,0.00013699,2]
[399789678,1766679043310,-500.0,0.00013699,2]
[399789680,1766679043320,-500.0,0.00013699,2]
[399789682,1766679043330,-500.0,0.00013699,2]
[399789684,1766679043340,-500.0,0.00013699,2]
[399789686,1766679043351,-200.0,0.00013699,2]
[399789688,1766679043364,-500.0,0.00013699,2]
[399789690,1766679043375,-474.85130129,0.00013699,2]
[399789692,1766679043388,-25.14869871,0.00013699,2]
[399789694,1766679043399,-150.0,0.00013699,2]
[399789696,1766679043410,-497.65971262,0.00013699,2]
[399789699,1766679043424,-2.34028738,0.00013699,2]
[399789701,1766679043438,-500.0,0.00013699,2]
[399789703,1766679043451,-500.0,0.00013699,2]
[399789705,1766679043462,-113.52042293,0.00013699,2]
[399789707,1766679043475,-386.47957707,0.00013699,2]
[399789709,1766679043485,-500.0,0.00013699,2]
[399789711,1766679043495,-500.0,0.00013699,2]
[399789713,1766679043506,-500.0,0.00013699,2]
[399789715,1766679043515,-500.0,0.00013699,2]
[399789717,1766679043526,-500.0,0.00013699,2]
[399789719,1766679043536,-500.0,0.00013699,2]
[399789722,1766679043546,-191.58046107,0.00013699,2]
[399789724,1766679043555,-500.0,0.00013699,2]
[399789726,1766679043566,-151.0,0.00013699,2]
[399789727,1766679043575,-151.0,0.00013699,2]
[399789730,1766679043586,-258.140732,0.00013699,2]
[399789732,1766679043596,-151.0,0.00013699,2]
[399789734,1766679043605,-151.0,0.00013699,2]
[399789736,1766679043616,-151.0,0.00013699,2]
[399789738,1766679043625,-208.14734087,0.00013699,2]
[399789740,1766679043636,-299.621933,0.00013699,2]
[399789742,1766679043648,-75.04328056,0.00013699,2]
[399789744,1766679043658,-160.0,0.00013699,2]
[399789746,1766679043669,-21.15671944,0.0001372,2]
[399789749,1766679043683,-197.88309398,0.0001372,2]
[399789751,1766679043694,-2000.0,0.00013744,7]
[399789753,1766679043705,-800.0,0.00013764,2]
[399789755,1766679043716,-825.03389234,0.00013768,2]
[399789757,1766679043726,-666.07149077,0.0001377,2]
[399789759,1766679043736,-1000.0,0.00013821,2]
[399789762,1766679043750,-1000.0,0.00013821,2]
[399789764,1766679043761,-734.2577039,0.00013821,2]
[399789766,1766679043773,-265.7422961,0.00013821,2]
[399789768,1766679043783,-1000.0,0.00013821,2]
[399789770,1766679043794,-1000.0,0.00013821,2]
[399789772,1766679043804,-1000.0,0.00013821,2]
[399789774,1766679043814,-1000.0,0.00013821,2]
[399789777,1766679043825,-1801.45191479,0.00014,2]
[399789993,1766679045950,-262.920145,0.00013699,2]
[399789995,1766679045961,-151.0,0.00013699,2]
[399789998,1766679045972,-262.920145,0.00013699,2]
[399790000,1766679045983,-262.920145,0.00013699,2]
[399790002,1766679045994,-151.0,0.00013699,2]
[399790004,1766679046005,-151.0,0.00013699,2]
[399790006,1766679046016,-262.920145,0.00013699,2]
[399790008,1766679046026,-262.920145,0.00013699,2]
[399790010,1766679046037,-151.0,0.00013699,2]
[399790012,1766679046047,-262.920145,0.00013699,2]
[399790014,1766679046058,-262.920145,0.00013699,2]
[399790016,1766679046069,-262.920145,0.00013699,2]
[399790018,1766679046079,-262.920145,0.00013699,2]
[399790020,1766679046089,-151.0,0.00013699,2]
[399790022,1766679046100,-151.0,0.00013699,2]
[399790024,1766679046110,-1896.13238888,0.00014,2]
[399790027,1766679046120,-157.74131493,0.00014,2]
[399790029,1766679046130,-2000.0,0.00014092,7]
[399790031,1766679046140,-5000.0,0.00014195,2]
[399790032,1766679046150,-600.0,0.00014221,2]
[399790034,1766679046160,-1039.69596762,0.00014228,2]
[399790036,1766679046170,-5037.77445405,0.00014235,2]
[399790038,1766679046181,-38000.0,0.00014238,3]
[399790041,1766679046191,-298.50297753,0.00014247,2]
[399790043,1766679046202,-1000.0,0.00014247,2]
[399790045,1766679046211,-500.0,0.00014247,2]
[399790046,1766679046221,-1000.0,0.00014247,2]
[399790049,1766679046231,-1000.0,0.00014247,2]
[399790051,1766679046241,-1000.0,0.00014247,2]
[399790053,1766679046251,-1000.0,0.00014247,2]
[399790055,1766679046261,-200.92471809,0.00014247,2]
[399790063,1766679046333,-49.07528191,0.00014247,2]
[399790065,1766679046344,-795.76406301,0.00014247,2]
[399790066,1766679046353,-1000.0,0.00014247,2]
[399790068,1766679046367,-1000.0,0.00014247,2]
[399790071,1766679046378,-1000.0,0.00014247,2]
[399790073,1766679046388,-1000.0,0.00014247,2]
[399790075,1766679046398,-1000.0,0.00014247,2]
[399790077,1766679046410,-538.76397659,0.00014247,2]
[399790079,1766679046420,-1000.0,0.00014247,2]
[399790081,1766679046430,-1000.0,0.00014247,2]
[399790083,1766679046441,-1000.0,0.00014247,2]
[399790085,1766679046451,-1000.0,0.00014247,2]
[399790087,1766679046463,-260.0,0.00014247,2]
[399790089,1766679046473,-1000.0,0.00014263,2]
[399790091,1766679046482,-1500.0,0.00014368,2]
[399790093,1766679046493,-315.42073836,0.00014368,2]
[399790567,1766679091175,200.0,0.00025449,120]
[399790569,1766679150931,200.0,0.00030122,120]
[399790570,1766679185420,5000.0,6e-05,10]
[399790571,1766679211118,200.0,0.00019552,120]
[399790572,1766679228798,500.0,0.00032877,120]
[399790573,1766679238305,500.0,0.00032877,120]
[399790574,1766679247346,500.0,0.00032877,120]
[399790575,1766679256235,500.0,0.00032877,120]
[399790576,1766679264578,500.0,0.00032877,120]
[399790577,1766679273403,500.0,0.00032877,120]
[399790578,1766679282613,500.0,0.00032877,120]
[399790579,1766679321751,573.3,0.00032877,120]
[399790580,1766679534039,430.15865277,0.00032876,120]
[399790581,1766679570851,200.0,0.00032166,120]
[399790582,1766679620599,500.0,0.00032876,120]
[399790583,1766679620868,500.0,0.00032876,120]
[399790584,1766679621106,500.0,0.00032876,120]
[399790585,1766679621330,500.0,0.00032876,120]
[399790586,1766679621556,500.0,0.00032876,120]
[399790587,1766679621780,500.0,0.00032876,120]
[399790588,1766679622076,500.0,0.00032876,120]
[399790589,1766679622254,500.0,0.00032876,120]
[399790590,1766679622484,500.0,0.00032876,120]
[399790591,1766679622746,500.0,0.00032876,120]
[399790592,1766679622970,500.0,0.00032876,120]
[399790593,1766679623214,500.0,0.00032876,120]
[399790594,1766679623468,500.0,0.00032876,120]
[399790595,1766679623681,500.0,0.00032876,120]
[399790596,1766679623919,500.0,0.00032876,120]
[399790597,1766679624340,500.0,0.00032876,120]
[399790598,1766679624451,500.0,0.00032876,120]
[399790599,1766679624631,500.0,0.00032876,120]
[399790600,1766679624847,500.0,0.00032876,120]
[399790601,1766679625105,500.0,0.00032876,120]
[399790602,1766679625338,500.0,0.00032876,120]
[399790603,1766679625755,500.0,0.00032876,120]
[399790604,1766679625992,389.41936356,0.00032876,120]
[399790605,1766679635120,200.0,0.000293,120]
[399790606,1766679635426,200.0,0.00031,120]
[399790607,1766679635730,277.80901,0.000327,120]
[399790608,1766679676156,3901.1087885,0.00032877,120]
[399790609,1766679690920,200.0,0.00031509,120]
[399790610,1766679757611,151.0,0.00032876,120]
[399790611,1766679838065,500.0,0.00032876,120]
[399790612,1766679838534,403.56603619,0.00032876,120]
[399790613,1766679845505,500.0,0.00032876,120]
[399790614,1766679845778,434.89306034,0.00032876,120]
[399790615,1766679858160,501.91786479,0.00032876,120]
[399790616,1766679861946,500.0,0.00032876,120]
[399790617,1766679862168,500.0,0.00032876,120]
[399790618,1766679862539,500.0,0.00032876,120]
[399790619,1766679862763,500.0,0.00032876,120]
[399790620,1766679862984,500.0,0.00032876,120]
[399790621,1766679863231,500.0,0.00032876,120]
[399790622,1766679863488,500.0,0.00032876,120]
[399790623,1766679863722,500.0,0.00032876,120]
[399790624,1766679864043,500.0,0.00032876,120]
[399790625,1766679864169,500.0,0.00032876,120]
[399790626,1766679864404,500.0,0.00032876,120]
[399790627,1766679864637,500.0,0.00032876,120]
[399790628,1766679864872,500.0,0.00032876,120]
[399790629,1766679865089,500.0,0.00032876,120]
[399790630,1766679865315,500.0,0.00032876,120]
[399790631,1766679865533,500.0,0.00032876,120]
[399790632,1766679865785,500.0,0.00032876,120]
[399790633,1766679866113,500.0,0.00032876,120]
[399790634,1766679866241,500.0,0.00032876,120]
[399790635,1766679866471,500.0,0.00032876,120]
[399790636,1766679866699,523.70864182,0.00032876,120]
[399790637,1766679867045,500.0,0.00032876,120]
[399790638,1766679867287,500.0,0.00032876,120]
[399790639,1766679867532,500.0,0.00032876,120]
[399790640,1766679867798,500.0,0.00032876,120]
[399790641,1766679868018,500.0,0.00032876,120]
[399790642,1766679868356,500.0,0.00032876,120]
[399790643,1766679868588,500.0,0.00032876,120]
[399790644,1766679868804,500.0,0.00032876,120]
[399790645,1766679869045,500.0,0.00032876,120]
[399790646,1766679869279,529.17573207,0.00032876,120]
[399790647,1766679870911,200.0,0.00031803,120]
[399790648,1766679871585,500.0,0.00032876,120]
[399790649,1766679871818,500.0,0.00032876,120]
[399790650,1766679872124,500.0,0.00032876,120]
[399790651,1766679872359,500.0,0.00032876,120]
[399790652,1766679872606,500.0,0.00032876,120]
[399790653,1766679875961,507.15314572,0.00032876,120]
[399790654,1766679879440,500.0,0.00032876,120]
[399790655,1766679879663,500.0,0.00032876,120]
[399790656,1766679879899,500.0,0.00032876,120]
[399790657,1766679880154,500.0,0.00032876,120]
[399790658,1766679880377,500.0,0.00032876,120]
[399790659,1766679880620,500.0,0.00032876,120]
[399790660,1766679880859,500.0,0.00032876,120]
[399790661,1766679881092,500.0,0.00032876,120]
[399790662,1766679881323,500.0,0.00032876,120]
[399790663,1766679881552,500.0,0.00032876,120]
[399790664,1766679881786,304.76707792,0.00032876,120]
[399790665,1766679882732,494.26524121,0.00032876,120]
[399790666,1766679883487,500.0,0.00032876,120]
[399790667,1766679883720,500.0,0.00032876,120]
[399790668,1766679883955,493.41490316,0.00032876,120]
[399790669,1766679885705,500.0,0.00032876,120]
[399790670,1766679885940,500.0,0.00032876,120]
[399790671,1766679886169,500.0,0.00032876,120]
[399790672,1766679886666,500.0,0.00032876,120]
[399790673,1766679888218,500.0,0.00032876,120]
[399790674,1766679888318,501.64490443,0.00032876,120]
[399790675,1766679888450,500.0,0.00032876,120]
[399790676,1766679888695,500.0,0.00032876,120]
[399790677,1766679889336,500.0,0.00032876,120]
[399790678,1766679889584,500.0,0.00032876,120]
[399790679,1766679889825,500.0,0.00032876,120]
[399790680,1766679889985,500.0,0.00032876,120]
[399790681,1766679890088,500.0,0.00032876,120]
[399790682,1766679890230,500.0,0.00032876,120]
[399790683,1766679890334,500.0,0.00032876,120]
[399790684,1766679890498,500.0,0.00032876,120]
[399790685,1766679890666,175.81312549,0.00032876,120]
[399790686,1766679890775,500.0,0.00032876,120]
[399790687,1766679890979,500.0,0.00032876,120]
[399790688,1766679892830,500.0,0.00032876,120]
[399790689,1766679893064,500.0,0.00032876,120]
[399790690,1766679893281,500.0,0.00032876,120]
[399790691,1766679893550,500.0,0.00032876,120]
[399790692,1766679893775,500.0,0.00032876,120]
[399790693,1766679894009,500.0,0.00032876,120]
[399790694,1766679894242,500.0,0.00032876,120]
[399790695,1766679894795,500.0,0.00032876,120]
[399790696,1766679894949,500.0,0.00032876,120]
[399790697,1766679895125,500.0,0.00032876,120]
[399790698,1766679895323,395.57510634,0.00032876,120]
[399790699,1766679895572,500.0,0.00032876,120]
[399790700,1766679895860,514.18704201,0.00032876,120]
[399790701,1766679896222,502.80012469,0.00032876,120]
[399790702,1766679896956,500.0,0.00032876,120]
[399790703,1766679897137,500.0,0.00032876,120]
[399790704,1766679897376,500.0,0.00032876,120]
[399790705,1766679897618,500.0,0.00032876,120]
[399790706,1766679897885,500.0,0.00032876,120]
[399790707,1766679898115,244.4690927,0.00032876,120]
[399790708,1766679900388,500.0,0.00032876,120]
[399790709,1766679900633,453.66280924,0.00032876,120]
[399790710,1766679910053,500.0,0.00032876,120]
[399790711,1766679910319,500.0,0.00032876,120]
[399790712,1766679910559,500.0,0.00032876,120]
[399790713,1766679910670,500.0,0.00032876,120]
[399790714,1766679910797,500.0,0.00032876,120]
[399790715,1766679910911,500.0,0.00032876,120]
[399790716,1766679911025,203.74726987,0.00032876,120]
[399790717,1766679911148,500.0,0.00032876,120]
[399790718,1766679911266,500.0,0.00032876,120]
[399790719,1766679911408,500.0,0.00032876,120]
[399790720,1766679911518,482.22388793,0.00032876,120]
[399790721,1766679911635,500.0,0.00032876,120]
[399790722,1766679911813,500.0,0.00032876,120]
[399790723,1766679912052,500.0,0.00032876,120]
[399790724,1766679912305,500.0,0.00032876,120]
[399790725,1766679912549,223.66184246,0.00032876,120]
[399790726,1766679914332,500.0,0.00032876,120]
[399790727,1766679914600,500.0,0.00032876,120]
[399790728,1766679914732,500.0,0.00032876,120]
[399790729,1766679914849,500.0,0.00032876,120]
[399790730,1766679914980,500.0,0.00032876,120]
[399790731,1766679915106,500.0,0.00032876,120]
[399790732,1766679915256,500.0,0.00032876,120]
[399790733,1766679915364,500.0,0.00032876,120]
[399790734,1766679915520,500.0,0.00032876,120]
[399790735,1766679915774,500.0,0.00032876,120]
[399790736,1766679915970,500.0,0.00032876,120]
[399790737,1766679916090,500.0,0.00032876,120]
[399790738,1766679916216,500.0,0.00032876,120]
[399790739,1766679916327,500.0,0.00032876,120]
[399790740,1766679916460,500.0,0.00032876,120]
[399790741,1766679916565,500.0,0.00032876,120]
[399790742,1766679916701,500.0,0.00032876,120]
[399790743,1766679916804,500.0,0.00032876,120]
[399790744,1766679916976,500.0,0.00032876,120]
[399790745,1766679917345,215.19039401,0.00032876,120]
[399790746,1766679917458,500.0,0.00032876,120]
[399790747,1766679917571,500.0,0.00032876,120]
[399790748,1766679917701,500.0,0.00032876,120]
[399790749,1766679917820,502.91211969,0.00032876,120]
[399790750,1766679917926,500.0,0.00032876,120]
[399790751,1766679918141,500.0,0.00032876,120]
[399790752,1766679918399,500.0,0.00032876,120]
[399790753,1766679918691,500.0,0.00032876,120]
[399790754,1766679918937,500.0,0.00032876,120]
[399790755,1766679919090,500.0,0.00032876,120]
[399790756,1766679919198,500.0,0.00032876,120]
[399790757,1766679919339,497.25506055,0.00032876,120]
[399790758,1766679919484,500.0,0.00032876,120]
[399790759,1766679919703,237.42790482,0.00032876,120]
[399790760,1766679921075,500.0,0.00032876,120]
[399790761,1766679921505,500.0,0.00032876,120]
[399790762,1766679921623,500.0,0.00032876,120]
[399790763,1766679921726,500.0,0.00032876,120]
[399790764,1766679921843,500.0,0.00032876,120]
[399790765,1766679921949,500.0,0.00032876,120]
[399790766,1766679922055,500.0,0.00032876,120]
[399790767,1766679922164,500.0,0.00032876,120]
[399790768,1766679922280,500.0,0.00032876,120]
[399790769,1766679922385,500.0,0.00032876,120]
[399790770,1766679922500,500.0,0.00032876,120]
[399790771,1766679922614,500.0,0.00032876,120]
[399790772,1766679922744,500.0,0.00032876,120]
[399790773,1766679922858,500.0,0.00032876,120]
[399790774,1766679922976,500.0,0.00032876,120]
[399790775,1766679923087,224.961718,0.00032876,120]
[399790776,1766679923211,355.21701858,0.00032876,120]
[399790777,1766679925019,500.0,0.00032876,120]
[399790778,1766679925307,500.0,0.00032876,120]
[399790779,1766679925432,500.0,0.00032876,120]
[399790780,1766679925549,500.0,0.00032876,120]
[399790781,1766679925667,480.61073871,0.00032876,120]
[399790782,1766679925787,440.80783159,0.00032876,120]
[399790783,1766679927649,500.0,0.00032876,120]
[399790784,1766679927828,500.0,0.00032876,120]
[399790785,1766679928064,484.97035451,0.00032876,120]
[399790786,1766679928250,161.0,0.0003018,120]
[399790787,1766679929218,500.0,0.00032876,120]
[399790788,1766679929508,161.0,0.00031689,120]
[399790789,1766679929810,500.0,0.00032876,120]
[399790790,1766679930053,500.0,0.00032876,120]
[399790791,1766679930331,500.0,0.00032876,120]
[399790792,1766679930578,500.0,0.00032876,120]
[399790793,1766679930823,500.0,0.00032876,120]
[399790794,1766679931089,500.0,0.00032876,120]
[399790795,1766679931329,500.0,0.00032876,120]
[399790796,1766679931578,500.0,0.00032876,120]
[399790797,1766679931858,500.0,0.00032876,120]
[399790798,1766679932115,500.0,0.00032876,120]
[399790799,1766679932359,500.0,0.00032876,120]
[399790801,1766679932586,500.0,0.00032876,120]
[399790802,1766679932816,500.0,0.00032876,120]
[399790803,1766679933070,500.0,0.00032876,120]
[399790804,1766679933671,500.0,0.00032876,120]
[399790805,1766679933943,500.0,0.00032876,120]
[399790806,1766679942578,500.72723345,0.00032876,120]
[399790807,1766679946000,500.0,0.00032876,120]
[399790808,1766679946222,500.0,0.00032876,120]
[399790809,1766679946452,361.44019795,0.00032876,120]
[399790810,1766679949992,500.0,0.00032876,120]
[399790811,1766679950122,500.0,0.00032876,120]
[399790812,1766679950362,500.0,0.00032876,120]
[399790813,1766679950529,500.0,0.00032876,120]
[399790814,1766679950645,500.0,0.00032876,120]
[399790815,1766679950767,500.0,0.00032876,120]
[399790816,1766679950893,500.0,0.00032876,120]
[399790817,1766679951015,500.0,0.00032876,120]
[399790818,1766679951138,500.0,0.00032876,120]
[399790819,1766679951263,500.0,0.00032876,120]
[399790820,1766679951380,500.0,0.00032876,120]
[399790821,1766679951501,500.0,0.00032876,120]